fUST/lending_fUST_20240824
["ID","MTS","AMOUNT","RATE_DAILY","PERIOD"]
[335688051,1724431839103,-744.913437,0.00017336,2]
[335688052,1724431839113,-461.869034,0.00017336,2]
[335688053,1724431839125,-801.3152615,0.00017347,2]
[335688054,1724431839135,-409.212231,0.00017347,2]
[335688055,1724431839146,-509.5007706,0.00017347,2]
[335688056,1724431839156,-407.8238958,0.00017347,2]
[335688057,1724431839166,-185.8,0.00017421,2]
[335688058,1724431839176,-179.637311,0.00017477,2]
[335688059,1724431839187,-16122.65873472,0.00017498,2]
[335688178,1724431840673,-445.28998676,0.00017497,2]
[335688180,1724431840683,-500.0,0.00017497,2]
[335688182,1724431840693,-500.0,0.00017497,2]
[335688184,1724431840702,-500.0,0.00017497,2]
[335688186,1724431840711,-500.0,0.00017497,2]
[335688188,1724431840721,-500.0,0.00017497,2]
[335688190,1724431840731,-168.13401224,0.00017498,2]
[335688193,1724431840743,-798.98016416,0.00017498,2]
[335688195,1724431840754,-26816.19111118,0.00017498,2]
[335688197,1724431840764,-3000.0,0.000175,2]
[335688199,1724431840773,-3000.0,0.0001751,2]
[335688201,1724431840783,-30765.642124,0.0001751,2]
[335688203,1724431840792,-3000.0,0.0001752,2]
[335688205,1724431840802,-3000.0,0.0001753,2]
[335688207,1724431840811,-185.8,0.00017539,2]
[335688209,1724431840821,-3000.0,0.0001754,2]
[335688211,1724431840830,-248.304479,0.00017548,2]
[335688213,1724431840839,-153.956344,0.00017548,2]
[335688215,1724431840849,-153.956345,0.00017548,2]
[335688217,1724431840858,-744.913437,0.00017548,2]
[335688219,1724431840867,-461.869034,0.00017548,2]
[335688221,1724431840877,-3000.0,0.0001755,2]
[335688223,1724431840887,-5850.0,0.0001756,2]
[335688225,1724431840896,-277.76886237,0.00017599,2]
[335688227,1724431840906,-150.112233,0.000176,2]
[335688229,1724431840915,-185.8,0.00017657,2]
[335688231,1724431840925,-5507.38617281,0.00017672,2]
[335688233,1724431840934,-488.82311791,0.00017721,2]
[335688235,1724431840944,-30765.642124,0.00017726,2]
[335688237,1724431840954,-150.0,0.00017736,2]
[335688239,1724431840963,-522.0,0.00017736,2]
[335688241,1724431840973,-1416.0,0.00017736,2]
[335688243,1724431840983,-150.0,0.00017736,2]
[335688245,1724431840992,-213.126,0.00017736,2]
[335688246,1724431841002,-34208.0,0.00017736,2]
[335688247,1724431841011,-30765.642124,0.00017755,2]
[335688248,1724431841022,-179.637311,0.00017759,2]
[335688249,1724431841032,-168.931042,0.00017759,2]
[335688250,1724431841045,-248.304479,0.00017759,2]
[335688251,1724431841054,-153.956344,0.00017759,2]
[335688252,1724431841063,-174.324383,0.00017759,2]
[335688253,1724431841073,-153.956345,0.00017759,2]
[335688254,1724431841084,-744.913437,0.00017759,2]
[335688255,1724431841094,-461.869034,0.00017759,2]
[335688256,1724431841103,-3443.734282,0.00017765,2]
[335688257,1724431841114,-3443.734282,0.00017765,2]
[335688258,1724431841124,-151.0,0.00017765,2]
[335688259,1724431841135,-206.141061,0.00017765,2]
[335688260,1724431841145,-206.141061,0.00017765,2]
[335688261,1724431841155,-151.0,0.00017765,2]
[335688262,1724431841164,-151.0,0.00017765,2]
[335688263,1724431841174,-151.0,0.00017765,2]
[335688264,1724431841183,-193.850635,0.00017765,2]
[335688265,1724431841193,-3637.537443,0.00017765,2]
[335688266,1724431841202,-3637.537443,0.00017765,2]
[335688267,1724431841211,-602.01766,0.00017765,2]
[335688268,1724431841220,-602.01766,0.00017765,2]
[335688270,1724431841229,-151.0,0.00017765,2]
[335688272,1724431841239,-151.0,0.00017765,2]
[335688274,1724431841249,-151.0,0.00017765,2]
[335688276,1724431841258,-1369.39331,0.00017765,2]
[335688278,1724431841268,-1369.39331,0.00017765,2]
[335688280,1724431841277,-151.0,0.00017765,2]
[335688282,1724431841287,-151.0,0.00017765,2]
[335688284,1724431841296,-151.0,0.00017765,2]
[335688286,1724431841306,-551.988409,0.00017765,2]
[335688288,1724431841315,-551.988409,0.00017765,2]
[335688290,1724431841324,-151.0,0.00017765,2]
[335688292,1724431841334,-185.8,0.00017775,2]
[335688294,1724431841343,-200.53469754,0.000178,2]
[335688296,1724431841355,-300.0,0.000178,7]
[335688298,1724431841367,-500.0,0.00017867,2]
[335688300,1724431841376,-500.0,0.00017867,2]
[335688302,1724431841386,-252.89410774,0.00017867,2]
[335688304,1724431841396,-500.0,0.00017867,2]
[335688306,1724431841406,-500.0,0.00017867,2]
[335688308,1724431841416,-500.0,0.00017867,2]
[335688310,1724431841426,-226.92927236,0.00017867,2]
[335688312,1724431841436,-500.0,0.00017867,2]
[335688314,1724431841446,-88.20979388,0.00017867,2]
[335688504,1724431843483,-320.30263659,0.00014519,2]
[335688505,1724431843493,-807.32715443,0.00014519,2]
[335688506,1724431843503,-150.104,0.00017736,2]
[335688507,1724431843514,-411.79020612,0.00017867,2]
[335688508,1724431843523,-213.19070913,0.00017867,2]
[335689139,1724431863929,170.86,0.00010959,2]
[335689165,1724431921044,1076.08305704,0.00010959,2]
[335689171,1724431928807,1309.44591287,0.00010959,2]
[335689199,1724432012006,923.91694307,0.00010959,2]
[335689202,1724432018194,1309.44591287,0.00010959,2]
[335689210,1724432108818,1309.44591287,0.00010959,2]
[335689224,1724432213821,1309.44591287,0.00010959,2]
[335689227,1724432243822,1309.44591287,0.00010959,2]
[335689263,1724432368834,994.35390754,0.00010959,2]
[335689291,1724432835185,-227.54108219,0.00012516,2]
[335689292,1724432835207,-201.33744455,0.00012689,2]
[335689293,1724432835230,-169.998518,0.00012793,2]
[335689294,1724432835253,-991.61536946,0.00012898,2]
[335689295,1724432835278,-169.998518,0.00012905,2]
[335689296,1724432835298,-341.07647144,0.00012934,2]
[335689297,1724432835319,-772.26164112,0.00012971,2]
[335689298,1724432835340,-898.82720151,0.00012971,2]
[335689299,1724432835361,-215.62742848,0.00012971,2]
[335689300,1724432835388,-557.32438164,0.00012985,2]
[335689301,1724432835409,-300.0,0.00012988,2]
[335689302,1724432835432,-300.0,0.00012988,2]
[335689303,1724432835455,-823.84946416,0.00012989,2]
[335689304,1724432835478,-154.77557233,0.00012989,2]
[335689305,1724432835500,-77.30022198,0.00012989,2]
[335689307,1724432847113,-128.54791761,0.00012989,2]
[335689308,1724432847135,-57.86635715,0.00012991,2]
[335689425,1724432951101,-300.0,0.00012766,2]
[335689426,1724432951123,-300.0,0.00012766,2]
[335689427,1724432951145,-371.56065913,0.00012767,2]
[335689428,1724432955164,-24528.43934087,0.00012767,2]
[335689429,1724432955187,-688.16584314,0.00012985,2]
[335689430,1724432955209,-288.10768054,0.00012985,2]
[335689431,1724432955230,-227.08570814,0.00012989,2]
[335689432,1724432955251,-862.83835129,0.00013,2]
[335689433,1724432955274,-169.998518,0.00013016,2]
[335689434,1724432955297,-169.998518,0.00013127,2]
[335689435,1724432955318,-169.998518,0.00013238,2]
[335689436,1724432955341,-169.998518,0.00013349,2]
[335689437,1724432955363,-169.998518,0.0001346,2]
[335689438,1724432955384,-521.48215482,0.00013496,2]
[335689439,1724432955406,-301.66413705,0.00013496,2]
[335689440,1724432955429,-4367.03994732,0.00013599,2]
[335689441,1724432955457,-3000.0,0.00013699,2]
[335689442,1724432955479,-1277.802197,0.00013699,2]
[335689443,1724432955500,-194.82337617,0.00013699,2]
[335689444,1724432955523,-495.34936838,0.00013971,2]
[335689445,1724432955546,-420.0,0.00014003,2]
[335689446,1724432955568,-420.0,0.00014042,2]
[335689447,1724432955590,-581.444891,0.00014247,2]
[335689448,1724432955612,-396.79922427,0.00014504,2]
[335689450,1724432955855,-158.15745652,0.00014519,2]
[335689451,1724432955876,-2601.6301199,0.00014519,2]
[335689452,1724432955900,-293.26617941,0.00014519,2]
[335689453,1724432955920,-493.25215365,0.00014519,2]
[335689454,1724432955941,-1766.94298382,0.00014519,2]
[335689455,1724432955962,-346.64449854,0.00014519,2]
[335689456,1724432955984,-229.32272251,0.000149,2]
[335689457,1724432956005,-366.15075023,0.00015,2]
[335689458,1724432956028,-235.06019857,0.00015,2]
[335689459,1724432956051,-523.0,0.00015361,2]
[335689460,1724432956074,-587.0,0.00015447,2]
[335689461,1724432956095,-1500.0,0.00015746,2]
[335689462,1724432956117,-934.07929589,0.00015746,2]
[335689463,1724432956139,-2166.86788154,0.00015746,2]
[335689464,1724432956161,-1452.79174937,0.00015746,2]
[335689486,1724433033112,-301.66413705,0.00013496,2]
[335689487,1724433033122,-348.75765367,0.00014519,2]
[335689488,1724433033132,-276.46960809,0.00014519,3]
[335689489,1724433033141,-495.95112109,0.00015746,2]
[335689490,1724433033151,-366.15075023,0.00015746,2]
[335689491,1724433033160,-177.7289535,0.00016385,2]
[335689492,1724433033171,-1000.0,0.00016438,2]
[335689493,1724433033181,-500.0,0.00016438,2]
[335689494,1724433033190,-4367.03994729,0.00016642,2]
[335689495,1724433033200,-300.0,0.00016912,2]
[335689496,1724433033210,-631.815367,0.00016913,2]
[335689497,1724433033220,-173.096953,0.00016913,2]
[335689498,1724433033230,-233.50846,0.00016913,2]
[335689499,1724433033239,-153.956344,0.00016913,2]
[335689500,1724433033249,-168.931043,0.00016913,2]
[335689501,1724433033258,-179.637313,0.00016913,2]
[335689502,1724433033268,-198.643583,0.00016913,2]
[335689503,1724433033277,-153.956345,0.00016913,2]
[335689504,1724433033286,-289.194896,0.00016913,2]
[335689505,1724433033296,-159.8,0.00016926,2]
[335689506,1724433033305,-159.8,0.00017046,2]
[335689507,1724433033314,-631.815367,0.00017125,2]
[335689508,1724433033324,-233.50846,0.00017125,2]
[335689509,1724433033334,-153.956344,0.00017125,2]
[335689510,1724433033343,-198.643583,0.00017125,2]
[335689511,1724433033353,-153.956345,0.00017125,2]
[335689512,1724433033362,-289.194896,0.00017125,2]
[335689513,1724433033372,-953.84767115,0.00017158,2]
[335689514,1724433033382,-159.8,0.00017166,2]
[335689515,1724433033391,-209.99252111,0.00017208,2]
[335689516,1724433033401,-500.0,0.00017247,7]
[335689517,1724433033410,-500.0,0.00017247,7]
[335689518,1724433033421,-500.0,0.00017247,7]
[335689519,1724433033431,-500.0,0.00017247,7]
[335689520,1724433033441,-500.0,0.00017247,7]
[335689521,1724433033451,-500.0,0.00017247,7]
[335689522,1724433033461,-500.0,0.00017247,7]
[335689523,1724433033470,-296.55,0.00017247,7]
[335689524,1724433033480,-159.8,0.00017286,2]
[335689525,1724433033490,-631.815367,0.00017336,2]
[335689526,1724433033501,-173.096953,0.00017336,2]
[335689527,1724433033512,-233.50846,0.00017336,2]
[335689528,1724433033522,-153.956344,0.00017336,2]
[335689529,1724433033534,-198.643583,0.00017336,2]
[335689530,1724433033546,-153.956345,0.00017336,2]
[335689531,1724433033556,-289.194896,0.00017336,2]
[335689532,1724433033565,-153.0,0.00017344,2]
[335689533,1724433033575,-207.6636928,0.00017396,2]
[335689535,1724433033585,-306.5694503,0.00017396,2]
[335689537,1724433033594,-159.8,0.00017406,2]
[335689539,1724433033603,-3000.0,0.000175,2]
[335689541,1724433033613,-3000.0,0.0001751,2]
[335689543,1724433033622,-1143.25489941,0.00017517,2]
[335689545,1724433033632,-3000.0,0.0001752,2]
[335689547,1724433033641,-159.8,0.00017526,2]
[335689549,1724433033651,-3000.0,0.0001753,2]
[335689551,1724433033662,-1416.0,0.00017538,2]
[335689553,1724433033674,-24952.91454676,0.00017538,2]
[335689616,1724433034283,-9255.08545324,0.00017538,2]
[335689618,1724433034292,-2820.91590107,0.0001754,2]
[335689650,1724433034611,-20.71269719,0.0001754,2]
[335689652,1724433034623,-158.37140174,0.0001754,2]
[335689654,1724433034632,-141.36859826,0.00017548,2]
[335689656,1724433034644,-490.44676874,0.00017548,2]
[335689658,1724433034653,-233.50846,0.00017548,2]
[335689660,1724433034663,-153.956344,0.00017548,2]
[335689662,1724433034676,-198.643583,0.00017548,2]
[335689664,1724433034686,-153.956345,0.00017548,2]
[335689666,1724433034696,-289.194896,0.00017548,2]
[335689668,1724433034705,-3000.0,0.0001755,2]
[335689670,1724433034715,-5850.0,0.0001756,2]
[335689672,1724433034724,-277.76886237,0.00017599,2]
[335689674,1724433034734,-1686.75310639,0.00017624,2]
[335689676,1724433034744,-2000.0,0.00017625,2]
[335689678,1724433034755,-159.8,0.00017646,2]
[335689680,1724433034764,-1686.75310635,0.00017681,2]
[335689682,1724433034774,-5624.56460202,0.00017705,2]
[335689684,1724433034783,-21315.80503795,0.00017714,2]
[335689686,1724433034795,-995.39929949,0.00017714,2]
[335689932,1724433040784,-953.84767115,0.00017119,2]
[335689933,1724433040794,-409.95262371,0.00017714,2]
[335689934,1724433040807,-10470.649875,0.00017714,2]
[335689935,1724433040818,-3109.73061695,0.00017714,2]
[335689936,1724433040828,-36301.5374531,0.00017715,2]
[335689937,1724433040838,-26816.19111118,0.00017724,2]
[335689938,1724433040847,-1000.0,0.00017735,2]
[335689939,1724433040857,-150.0,0.00017736,2]
[335689940,1724433040866,-150.0,0.00017736,2]
[335689941,1724433040876,-150.0,0.00017736,2]
[335689942,1724433040886,-522.0,0.00017736,2]
[335689943,1724433040896,-1686.75310635,0.00017738,2]
[335689944,1724433040906,-251.47809,0.00017748,2]
[335689945,1724433040915,-2076.824883,0.00017748,2]
[335689946,1724433040927,-2076.824883,0.00017748,2]
[335689947,1724433040937,-151.0,0.00017748,2]
[335689948,1724433040946,-151.0,0.00017748,2]
[335689949,1724433040956,-36301.5374531,0.00017748,2]
[335689950,1724433040967,-631.815367,0.00017759,2]
[335689951,1724433040977,-173.096953,0.00017759,2]
[335689952,1724433040987,-233.50846,0.00017759,2]
[335689953,1724433040997,-153.956344,0.00017759,2]
[335689954,1724433041006,-198.643583,0.00017759,2]
[335689955,1724433041016,-153.956345,0.00017759,2]
[335689956,1724433041025,-289.194896,0.00017759,2]
[335689957,1724433041034,-159.8,0.00017767,2]
[335689958,1724433041043,-156.04172297,0.00017773,2]
[335689959,1724433041053,-500.0,0.00017773,2]
[335689960,1724433041063,-500.0,0.00017773,2]
[335689961,1724433041072,-1686.75310635,0.00017794,2]
[335689962,1724433041082,-300.0,0.000178,7]
[335689963,1724433041091,-1686.75310635,0.00017851,2]
[335689964,1724433041101,-361.27729676,0.00017858,2]
[335689965,1724433041112,-500.0,0.00017858,2]
[335689966,1724433041122,-500.0,0.00017858,2]
[335689967,1724433041132,-500.0,0.00017858,2]
[335689968,1724433041141,-500.0,0.00017858,2]
[335689969,1724433041151,-500.0,0.00017858,2]
[335689970,1724433041160,-188.47038909,0.00017858,2]
[335689971,1724433041171,-500.0,0.00017858,2]
[335689972,1724433041181,-500.0,0.00017858,2]
[335689973,1724433041191,-500.0,0.00017858,2]
[335689974,1724433041200,-500.0,0.00017858,2]
[335689975,1724433041210,-500.0,0.00017858,2]
[335689976,1724433041220,-500.0,0.00017858,2]
[335689977,1724433041230,-500.0,0.00017858,2]
[335689978,1724433041240,-31725.79316384,0.00017859,2]
[335689979,1724433041250,-200.558263,0.00017869,2]
[335689980,1724433041259,-200.558263,0.00017869,2]
[335689981,1724433041269,-3135.293401,0.00017869,2]
[335689982,1724433041279,-500.0,0.00017873,2]
[335689983,1724433041289,-500.0,0.00017873,2]
[335689984,1724433041299,-500.0,0.00017873,2]
[335689985,1724433041309,-504.70643128,0.00017873,2]
[335689986,1724433041319,-500.0,0.00017873,2]
[335689987,1724433041330,-500.0,0.00017873,2]
[335689988,1724433041339,-36301.5374531,0.00017878,2]
[335689989,1724433041349,-159.8,0.00017887,2]
[335689990,1724433041359,-3114.87967328,0.00017888,9]
[335689991,1724433041368,-1000.0,0.00017888,2]
[335689992,1724433041377,-151.0,0.00017888,2]
[335689993,1724433041387,-151.0,0.00017888,2]
[335689994,1724433041396,-151.0,0.00017888,2]
[335689995,1724433041405,-5180.604428,0.00017888,2]
[335689996,1724433041414,-5180.604428,0.00017888,2]
[335689997,1724433041425,-2076.824883,0.00017888,2]
[335689998,1724433041434,-2076.824883,0.00017888,2]
[335689999,1724433041444,-151.0,0.00017888,2]
[335690000,1724433041457,-151.0,0.00017888,2]
[335690001,1724433041466,-30859.01302771,0.00017888,2]
[335690002,1724433041478,-1840.25643061,0.00017888,2]
[335690032,1724433044813,-473.35573742,0.00017559,2]
[335690033,1724433044822,-500.0,0.00017559,2]
[335690034,1724433044832,-154.37681234,0.00017559,2]
[335690035,1724433044843,-500.0,0.00017559,2]
[335690036,1724433044851,-500.0,0.00017559,2]
[335690037,1724433044863,-500.0,0.00017559,2]
[335690038,1724433044872,-500.0,0.00017559,2]
[335690039,1724433044882,-500.0,0.00017559,2]
[335690040,1724433044891,-500.0,0.00017559,2]
[335690041,1724433044902,-254.10733532,0.00017559,2]
[335690042,1724433044911,-500.0,0.00017559,2]
[335690043,1724433044921,-500.0,0.00017559,2]
[335690044,1724433044931,-1583.670468,0.00017748,2]
[335690045,1724433044941,-3602.26799478,0.00017888,2]
[335690046,1724433044951,-151.0,0.00017897,2]
[335690047,1724433044960,-151.0,0.00017897,2]
[335690048,1724433044970,-151.0,0.00017897,2]
[335690049,1724433044980,-151.0,0.00017897,2]
[335690050,1724433044989,-151.0,0.00017897,2]
[335690051,1724433044998,-151.0,0.00017897,2]
[335690052,1724433045007,-897.891921,0.00017897,2]
[335690053,1724433045017,-897.891921,0.00017897,2]
[335690054,1724433045027,-151.0,0.00017897,2]
[335690055,1724433045036,-1735.245779,0.00017897,2]
[335690056,1724433045045,-1735.245779,0.00017897,2]
[335690057,1724433045054,-1000.0,0.00017898,2]
[335690058,1724433045064,-19860.18303358,0.00017898,2]
[335690059,1724433045073,-151.0,0.00017898,2]
[335690060,1724433045082,-151.0,0.00017898,2]
[335690061,1724433045092,-151.0,0.00017898,2]
[335690062,1724433045101,-151.0,0.00017898,2]
[335690063,1724433045110,-7118.467093,0.00017898,2]
[335690064,1724433045119,-7118.467093,0.00017898,2]
[335690065,1724433045129,-157.884443,0.00017898,2]
[335690066,1724433045138,-157.884443,0.00017898,2]
[335690067,1724433045148,-151.0,0.00017898,2]
[335690068,1724433045157,-151.0,0.00017898,2]
[335690069,1724433045168,-1162.244187,0.00017898,2]
[335690070,1724433045178,-1162.244187,0.00017898,2]
[335690071,1724433045188,-876.823967,0.00017898,2]
[335690072,1724433045197,-1369.39331,0.00017898,2]
[335690073,1724433045206,-876.823967,0.00017898,2]
[335690074,1724433045216,-1369.39331,0.00017898,2]
[335690075,1724433045225,-2076.824883,0.00017898,2]
[335690076,1724433045235,-2076.824883,0.00017898,2]
[335690077,1724433045243,-151.0,0.00017898,2]
[335690078,1724433045253,-151.0,0.00017898,2]
[335690079,1724433045262,-364.12279,0.00017899,2]
[335690080,1724433045271,-364.12279,0.00017899,2]
[335690081,1724433045281,-602.01766,0.00017899,2]
[335690082,1724433045290,-602.01766,0.00017899,2]
[335690083,1724433045300,-151.0,0.00017899,2]
[335690084,1724433045310,-151.0,0.00017899,2]
[335690085,1724433045319,-151.0,0.00017899,2]
[335690086,1724433045335,-151.0,0.00017899,2]
[335690087,1724433045344,-151.0,0.00017899,2]
[335690088,1724433045354,-151.0,0.00017899,2]
[335690089,1724433045363,-151.0,0.00017899,2]
[335690090,1724433045373,-897.891921,0.00017899,2]
[335690091,1724433045382,-897.891921,0.00017899,2]
[335690092,1724433045391,-1735.245779,0.00017899,2]
[335690093,1724433045401,-1735.245779,0.00017899,2]
[335690094,1724433045411,-3200.0,0.000179,2]
[335690095,1724433045423,-150.112233,0.000179,2]
[335690096,1724433045434,-150.112233,0.000179,2]
[335690097,1724433045446,-150.112233,0.000179,2]
[335690098,1724433045465,-150.112233,0.000179,2]
[335690099,1724433045475,-150.112233,0.000179,2]
[335690100,1724433045485,-150.112233,0.000179,2]
[335690101,1724433045495,-3637.537443,0.000179,2]
[335690102,1724433045505,-3637.537443,0.000179,2]
[335690103,1724433045514,-150.112237,0.000179,2]
[335690104,1724433045524,-151.0,0.000179,2]
[335690105,1724433045534,-151.0,0.000179,2]
[335690106,1724433045543,-258.148986,0.000179,2]
[335690107,1724433045553,-5180.604428,0.000179,2]
[335690108,1724433045562,-5180.604428,0.000179,2]
[335690109,1724433045571,-2076.824883,0.0001794,2]
[335690110,1724433045581,-2076.824883,0.0001794,2]
[335690111,1724433045591,-151.0,0.0001794,2]
[335690112,1724433045601,-151.0,0.0001794,2]
[335690113,1724433045610,-36301.5374531,0.0001794,2]
[335690114,1724433045620,-2983.40993177,0.00017941,9]
[335690115,1724433045629,-36301.5374531,0.00017942,2]
[335690116,1724433045639,-2076.824883,0.00017949,2]
[335690117,1724433045649,-2076.824883,0.00017949,2]
[335690118,1724433045659,-151.0,0.00017949,2]
[335690119,1724433045668,-254.297853,0.00017949,2]
[335690120,1724433045681,-36301.5374531,0.00017949,2]
[335690121,1724433045690,-1000.0,0.00017951,2]
[335690122,1724433045700,-3637.537443,0.00017952,2]
[335690123,1724433045710,-3637.537443,0.00017952,2]
[335690124,1724433045729,-364.12279,0.00017952,2]
[335690125,1724433045742,-364.12279,0.00017952,2]
[335690126,1724433045752,-602.01766,0.00017952,2]
[335690127,1724433045763,-602.01766,0.00017952,2]
[335690128,1724433045773,-151.0,0.00017952,2]
[335690129,1724433045783,-151.0,0.00017952,2]
[335690130,1724433045792,-151.0,0.00017952,2]
[335690131,1724433045802,-282.267809,0.00017952,2]
[335690132,1724433045813,-151.0,0.00017952,2]
[335690133,1724433045823,-7118.467093,0.00017952,2]
[335690134,1724433045834,-7118.467093,0.00017952,2]
[335690135,1724433045844,-157.884443,0.00017952,2]
[335690136,1724433045854,-157.884443,0.00017952,2]
[335690137,1724433045864,-151.0,0.00017952,2]
[335690138,1724433045874,-151.0,0.00017952,2]
[335690139,1724433045884,-151.0,0.00017952,2]
[335690140,1724433045894,-1162.244187,0.00017952,2]
[335690141,1724433045904,-1162.244187,0.00017952,2]
[335690142,1724433045915,-151.0,0.00017952,2]
[335690143,1724433045925,-876.823967,0.00017952,2]
[335690144,1724433045937,-1369.39331,0.00017952,2]
[335690145,1724433045947,-876.823967,0.00017952,2]
[335690146,1724433045957,-1369.39331,0.00017952,2]
[335690147,1724433045967,-5180.604428,0.00017952,2]
[335690148,1724433045977,-5180.604428,0.00017952,2]
[335690149,1724433045987,-151.0,0.00017952,2]
[335690150,1724433045998,-151.0,0.00017952,2]
[335690151,1724433046008,-151.0,0.00017952,2]
[335690152,1724433046017,-151.0,0.00017952,2]
[335690153,1724433046028,-151.0,0.00017952,2]
[335690154,1724433046038,-151.0,0.00017952,2]
[335690155,1724433046048,-897.891921,0.00017952,2]
[335690156,1724433046059,-897.891921,0.00017952,2]
[335690157,1724433046069,-1735.245779,0.00017952,2]
[335690158,1724433046079,-1735.245779,0.00017952,2]
[335690160,1724433046089,-200.558263,0.00017958,2]
[335690161,1724433046099,-200.558263,0.00017958,2]
[335690162,1724433046110,-151.0,0.00017959,2]
[335690163,1724433046120,-151.0,0.00017959,2]
[335690164,1724433046130,-151.0,0.00017959,2]
[335690165,1724433046140,-151.0,0.00017959,2]
[335690167,1724433046149,-172.222168,0.00017959,2]
[335690169,1724433046159,-151.0,0.00017959,2]
[335690170,1724433046169,-897.891921,0.00017959,2]
[335690171,1724433046180,-897.891921,0.00017959,2]
[335690172,1724433046190,-1735.245779,0.00017959,2]
[335690173,1724433046200,-1735.245779,0.00017959,2]
[335690174,1724433046210,-1017.80550856,0.00017961,2]
[335690175,1724433046221,-208.175455,0.00017961,2]
[335690176,1724433046230,-208.175455,0.00017961,2]
[335690177,1724433046240,-289.339532,0.00017961,2]
[335690178,1724433046250,-151.0,0.00017961,2]
[335690179,1724433046260,-161.714132,0.00017961,2]
[335690181,1724433046269,-161.714132,0.00017961,2]
[335690183,1724433046280,-2322.445118,0.00017961,2]
[335690184,1724433046289,-2322.445118,0.00017961,2]
[335690185,1724433046299,-151.0,0.00017961,2]
[335690186,1724433046309,-151.0,0.00017961,2]
[335690188,1724433046320,-1819.818655,0.00017961,2]
[335690190,1724433046329,-1819.818655,0.00017961,2]
[335690192,1724433046343,-151.0,0.00017961,2]
[335690193,1724433046354,-151.0,0.00017961,2]
[335690194,1724433046365,-193.850635,0.00017961,2]
[335690195,1724433046376,-151.0,0.00017961,2]
[335690196,1724433046386,-151.0,0.00017961,2]
[335690198,1724433046397,-2044.935668,0.00017961,2]
[335690199,1724433046406,-1708.397012,0.00017961,2]
[335690200,1724433046416,-2044.935668,0.00017961,2]
[335690201,1724433046428,-379.025079,0.00017961,2]
[335690203,1724433046447,-1708.397012,0.00017961,2]
[335690204,1724433046459,-379.025079,0.00017961,2]
[335690205,1724433046468,-3637.537443,0.00017961,2]
[335690206,1724433046477,-3637.537443,0.00017961,2]
[335690207,1724433046487,-184.34128,0.00017961,2]
[335690208,1724433046497,-184.34128,0.00017961,2]
[335690210,1724433046506,-364.12279,0.00017961,2]
[335690211,1724433046516,-364.12279,0.00017961,2]
[335690212,1724433046525,-602.01766,0.00017961,2]
[335690213,1724433046535,-602.01766,0.00017961,2]
[335690214,1724433046545,-151.0,0.00017961,2]
[335690215,1724433046554,-151.0,0.00017961,2]
[335690216,1724433046564,-151.0,0.00017961,2]
[335690217,1724433046573,-515.064867,0.00017961,2]
[335690218,1724433046583,-515.064867,0.00017961,2]
[335690219,1724433046592,-151.0,0.00017961,2]
[335690220,1724433046601,-7118.467093,0.00017961,2]
[335690221,1724433046612,-7118.467093,0.00017961,2]
[335690222,1724433046623,-157.884443,0.00017961,2]
[335690223,1724433046634,-157.884443,0.00017961,2]
[335690224,1724433046645,-151.0,0.00017961,2]
[335690225,1724433046655,-151.0,0.00017961,2]
[335690226,1724433046665,-151.0,0.00017961,2]
[335690227,1724433046675,-151.0,0.00017961,2]
[335690228,1724433046685,-1162.244187,0.00017961,2]
[335690229,1724433046694,-1162.244187,0.00017961,2]
[335690230,1724433046704,-151.0,0.00017961,2]
[335690231,1724433046713,-151.0,0.00017961,2]
[335690232,1724433046722,-876.823967,0.00017961,2]
[335690233,1724433046732,-1369.39331,0.00017961,2]